Workbook

Sheet 18 期間の予算
B1: 会社の予算
G2: 開始日 | H2: 2011-01-01 | I2: 期間 (日単位) | K2: 14 | L2: 終了日 | M2: =TEXT(T4,"yyyy/mm/dd") -> 2012/08/26
C4: =UPPER(TEXT(H2,"dd-mmm")) -> 01-JAN | D4: =UPPER(TEXT(C4+DayInterval,"dd-mmm")) -> 15-JAN | E4: 29-JAN | F4: 12-FEB | G4: 26-FEB | H4: 11-MAR | I4: 25-MAR | J4: 08-APR | K4: 22-APR | L4: 06-MAY | M4: 20-MAY | N4: 03-JUN | O4: 17-JUN | P4: 01-JUL | Q4: 15-JUL | R4: 29-JUL | S4: 12-AUG | T4: 26-AUG
C5: =UPPER(TEXT(H2,"[$-411]mmmmd日")) -> 1月1日 | D5: =TEXT(C4+DayInterval,"[$-411]mmmmd日") -> 1月15日 | E5: =UPPER(TEXT(D4+DayInterval,"[$-411]mmmmd日")) -> 1月29日 | F5: =UPPER(TEXT(E4+DayInterval,"[$-411]mmmmd日")) -> 2月12日 | G5: =UPPER(TEXT(F4+DayInterval,"[$-411]mmmmd日")) -> 2月26日 | H5: =UPPER(TEXT(G4+DayInterval,"[$-411]mmmmd日")) -> 3月11日 | I5: =UPPER(TEXT(H4+DayInterval,"[$-411]mmmmd日")) -> 3月25日 | J5: =UPPER(TEXT(I4+DayInterval,"[$-411]mmmmd日")) -> 4月8日 | K5: =UPPER(TEXT(J4+DayInterval,"[$-411]mmmmd日")) -> 4月22日 | L5: =UPPER(TEXT(K4+DayInterval,"[$-411]mmmmd日")) -> 5月6日 | M5: =UPPER(TEXT(L4+DayInterval,"[$-411]mmmmd日")) -> 5月20日 | N5: =UPPER(TEXT(M4+DayInterval,"[$-411]mmmmd日")) -> 6月3日 | O5: =UPPER(TEXT(N4+DayInterval,"[$-411]mmmmd日")) -> 6月17日 | P5: =UPPER(TEXT(O4+DayInterval,"[$-411]mmmmd日")) -> 7月1日 | Q5: =UPPER(TEXT(P4+DayInterval,"[$-411]mmmmd日")) -> 7月15日 | R5: =UPPER(TEXT(Q4+DayInterval,"[$-411]mmmmd日")) -> 7月29日 | S5: =UPPER(TEXT(R4+DayInterval,"[$-411]mmmmd日")) -> 8月12日 | T5: =UPPER(TEXT(S4+DayInterval,"[$-411]mmmmd日")) -> 8月26日 | U5: 合計 | V5: 傾向
B6: 純利益 | C6: =IncomeTable[[#Totals],[Week 1]]-ExpensesTable[[#Totals],[Week 1]] -> ¥175,000 | D6: =IncomeTable[[#Totals],[Week 2]]-ExpensesTable[[#Totals],[Week 2]] -> ¥223,600 | E6: =IncomeTable[[#Totals],[Week 3]]-ExpensesTable[[#Totals],[Week 3]] -> ¥144,200 | F6: =IncomeTable[[#Totals],[Week 4]]-ExpensesTable[[#Totals],[Week 4]] -> ¥225,300 | G6: =IncomeTable[[#Totals],[Week 5]]-ExpensesTable[[#Totals],[Week 5]] -> ¥153,300 | H6: =IncomeTable[[#Totals],[Week 6]]-ExpensesTable[[#Totals],[Week 6]] -> ¥108,600 | I6: =IncomeTable[[#Totals],[Week 7]]-ExpensesTable[[#Totals],[Week 7]] -> ¥159,400 | J6: =IncomeTable[[#Totals],[Week 8]]-ExpensesTable[[#Totals],[Week 8]] -> 0 | K6: =IncomeTable[[#Totals],[Week 9]]-ExpensesTable[[#Totals],[Week 9]] -> 0 | L6: =IncomeTable[[#Totals],[Week 10]]-ExpensesTable[[#Totals],[Week 10]] -> 0 | M6: =IncomeTable[[#Totals],[Week 11]]-ExpensesTable[[#Totals],[Week 11]] -> 0 | N6: =IncomeTable[[#Totals],[Week 12]]-ExpensesTable[[#Totals],[Week 12]] -> 0 | O6: =IncomeTable[[#Totals],[Week 13]]-ExpensesTable[[#Totals],[Week 13]] -> 0 | P6: \ | Q6: =IncomeTable[[#Totals],[Week 15]]-ExpensesTable[[#Totals],[Week 15]] -> 0 | R6: =IncomeTable[[#Totals],[Week 16]]-ExpensesTable[[#Totals],[Week 16]] -> 0 | S6: =IncomeTable[[#Totals],[Week 17]]-ExpensesTable[[#Totals],[Week 17]] -> 0 | T6: =IncomeTable[[#Totals],[Week 18]]-ExpensesTable[[#Totals],[Week 18]] -> 0 | U6: =IncomeTable[[#Totals],[Total]]-ExpensesTable[[#Totals],[Total]] -> ¥1,189,400
A8: 収入
B9: 収入項目 1 | C9: ¥300,000 | D9: ¥350,000 | E9: ¥297,800 | F9: ¥338,400 | G9: ¥285,800 | H9: ¥280,900 | I9: ¥322,000 | U9: =SUM(IncomeTable[[#This Row],[Week 1]:[Week 18]]) -> ¥2,174,900
B10: 収入項目 2 | C10: 115,000 | D10: 120,000 | E10: 114,400 | F10: 140,000 | G10: 135,800 | H10: 115,400 | I10: 124,500 | U10: =SUM(IncomeTable[[#This Row],[Week 1]:[Week 18]]) -> 865,100
B11: 収入項目 3 | C11: 30,000 | D11: 35,000 | E11: 39,200 | F11: 32,600 | G11: 38,100 | H11: 36,400 | I11: 31,500 | U11: =SUM(IncomeTable[[#This Row],[Week 1]:[Week 18]]) -> 242,800
B12: 総収入 | C12: =SUBTOTAL(109,IncomeTable[Week 1]) -> ¥445,000 | D12: =SUBTOTAL(109,IncomeTable[Week 2]) -> ¥505,000 | E12: =SUBTOTAL(109,IncomeTable[Week 3]) -> ¥451,400 | F12: =SUBTOTAL(109,IncomeTable[Week 4]) -> ¥511,000 | G12: =SUBTOTAL(109,IncomeTable[Week 5]) -> ¥459,700 | H12: =SUBTOTAL(109,IncomeTable[Week 6]) -> ¥432,700 | I12: =SUBTOTAL(109,IncomeTable[Week 7]) -> ¥478,000 | J12: =SUBTOTAL(109,IncomeTable[Week 8]) -> 0 | K12: =SUBTOTAL(109,IncomeTable[Week 9]) -> 0 | L12: =SUBTOTAL(109,IncomeTable[Week 10]) -> 0 | M12: =SUBTOTAL(109,IncomeTable[Week 11]) -> 0 | N12: =SUBTOTAL(109,IncomeTable[Week 12]) -> 0 | O12: =SUBTOTAL(109,IncomeTable[Week 13]) -> 0 | P12: =SUBTOTAL(109,IncomeTable[Week 14]) -> 0 | Q12: =SUBTOTAL(109,IncomeTable[Week 15]) -> 0 | R12: =SUBTOTAL(109,IncomeTable[Week 16]) -> 0 | S12: =SUBTOTAL(109,IncomeTable[Week 17]) -> 0 | T12: =SUBTOTAL(109,IncomeTable[Week 18]) -> 0 | U12: =SUBTOTAL(109,IncomeTable[Total]) -> ¥3,282,800
A14: 支出
B15: 給与 | C15: ¥150,000 | D15: ¥157,700 | E15: ¥182,300 | F15: ¥152,900 | G15: ¥175,900 | H15: ¥194,700 | I15: ¥187,500 | U15: =SUM(ExpensesTable[[#This Row],[Week 1]:[Week 18]]) -> ¥1,201,000
B16: 賃借料 | C16: 100,000 | D16: 100,000 | E16: 100,000 | F16: 100,000 | G16: 100,000 | H16: 100,000 | I16: 100,000 | U16: =SUM(ExpensesTable[[#This Row],[Week 1]:[Week 18]]) -> 700,000
B17: 電気 | C17: 4,000 | D17: 4,300 | E17: 4,000 | F17: 4,200 | G17: 4,500 | H17: 4,000 | I17: 4,200 | U17: =SUM(ExpensesTable[[#This Row],[Week 1]:[Week 18]]) -> 29,200
B18: 電話 | C18: 1,200 | D18: 1,100 | E18: 1,300 | F18: 1,400 | G18: 1,100 | H18: 1,500 | I18: 1,500 | U18: =SUM(ExpensesTable[[#This Row],[Week 1]:[Week 18]]) -> 9,100
B19: インターネット | C19: 1,500 | D19: 1,500 | E19: 1,500 | F19: 1,500 | G19: 1,500 | H19: 1,500 | I19: 1,500 | U19: =SUM(ExpensesTable[[#This Row],[Week 1]:[Week 18]]) -> 10,500
B20: 水道 | C20: 1,100 | D20: 1,000 | E20: 1,300 | F20: 1,000 | G20: 1,300 | H20: 1,000 | I20: 1,200 | U20: =SUM(ExpensesTable[[#This Row],[Week 1]:[Week 18]]) -> 7,900
B21: ガス | C21: 2,300 | D21: 2,700 | E21: 2,600 | F21: 2,700 | G21: 2,200 | H21: 2,900 | I21: 2,100 | U21: =SUM(ExpensesTable[[#This Row],[Week 1]:[Week 18]]) -> 17,500
B22: 廃棄物の撤去 | C22: 400 | D22: 400 | E22: 400 | F22: 400 | G22: 400 | H22: 400 | I22: 400 | U22: =SUM(ExpensesTable[[#This Row],[Week 1]:[Week 18]]) -> 2,800
B23: ケーブル TV | C23: 1,000 | D23: 1,000 | E23: 1,000 | F23: 1,000 | G23: 1,000 | H23: 1,000 | I23: 1,000 | U23: =SUM(ExpensesTable[[#This Row],[Week 1]:[Week 18]]) -> 7,000
B24: 事務用品 | C24: 2,500 | D24: 5,700 | E24: 6,800 | F24: 14,600 | G24: 12,500 | H24: 11,100 | I24: 13,200 | U24: =SUM(ExpensesTable[[#This Row],[Week 1]:[Week 18]]) -> 66,400
B25: 保険 | C25: 6,000 | D25: 6,000 | E25: 6,000 | F25: 6,000 | G25: 6,000 | H25: 6,000 | I25: 6,000 | U25: =SUM(ExpensesTable[[#This Row],[Week 1]:[Week 18]]) -> 42,000
B26: 総支出 | C26: =SUBTOTAL(109,ExpensesTable[Week 1]) -> ¥270,000 | D26: =SUBTOTAL(109,ExpensesTable[Week 2]) -> ¥281,400 | E26: =SUBTOTAL(109,ExpensesTable[Week 3]) -> ¥307,200 | F26: =SUBTOTAL(109,ExpensesTable[Week 4]) -> ¥285,700 | G26: =SUBTOTAL(109,ExpensesTable[Week 5]) -> ¥306,400 | H26: =SUBTOTAL(109,ExpensesTable[Week 6]) -> ¥324,100 | I26: =SUBTOTAL(109,ExpensesTable[Week 7]) -> ¥318,600 | J26: =SUBTOTAL(109,ExpensesTable[Week 8]) -> 0 | K26: =SUBTOTAL(109,ExpensesTable[Week 9]) -> 0 | L26: =SUBTOTAL(109,ExpensesTable[Week 10]) -> 0 | M26: =SUBTOTAL(109,ExpensesTable[Week 11]) -> 0 | N26: =SUBTOTAL(109,ExpensesTable[Week 12]) -> 0 | O26: =SUBTOTAL(109,ExpensesTable[Week 13]) -> 0 | P26: =SUBTOTAL(109,ExpensesTable[Week 14]) -> 0 | Q26: =SUBTOTAL(109,ExpensesTable[Week 15]) -> 0 | R26: =SUBTOTAL(109,ExpensesTable[Week 16]) -> 0 | S26: =SUBTOTAL(109,ExpensesTable[Week 17]) -> 0 | T26: =SUBTOTAL(109,ExpensesTable[Week 18]) -> 0 | U26: =SUBTOTAL(109,ExpensesTable[Total]) -> ¥2,093,400
